fUST/lending_fUST_20260628
["ID","MTS","AMOUNT","RATE_DAILY","PERIOD"]
[426558982,1782591042000,-500.0,0.00043835,2]
[426558974,1782591042000,-1688.5,0.00043835,120]
[426558952,1782591042000,-500.0,0.00042465,2]
[426559008,1782591042000,-178.52,0.00045205,120]
[426559013,1782591042000,-500.0,0.00046575,120]
[426559044,1782591042000,-500.0,0.00047945,120]
[426559052,1782591042000,-552.38,0.00049315,90]
[426559041,1782591042000,-386.06,0.00047945,120]
[426559053,1782591042000,-1000.0,0.00049315,2]
[426559062,1782591042000,-299.65444022,0.0005,2]
[426559059,1782591042000,-500.0,0.00049315,120]
[426559046,1782591042000,-500.0,0.00049315,120]
[426559063,1782591042000,-151.0,0.0005,120]
[426559057,1782591042000,-500.0,0.00049315,120]
[426559051,1782591042000,-500.0,0.00049315,120]
[426559043,1782591042000,-500.0,0.00047945,120]
[426559066,1782591042000,-500.0,0.00050684,120]
[426559056,1782591042000,-500.0,0.00049315,90]
[426559049,1782591042000,-500.0,0.00049315,120]
[426559058,1782591042000,-3697.04,0.00049315,120]
[426559045,1782591042000,-165.241,0.0004928,86]
[426559048,1782591042000,-500.0,0.00049315,120]
[426559055,1782591042000,-1688.5,0.00049315,120]
[426559065,1782591042000,-156.0,0.0005,120]
[426559060,1782591042000,-500.0,0.00049315,120]
[426559047,1782591042000,-484.78,0.00049315,120]
[426559061,1782591042000,-300.0,0.00049315,120]
[426559068,1782591042000,-500.0,0.00050684,120]
[426559069,1782591042000,-500.0,0.00050684,120]
[426559067,1782591042000,-500.0,0.00050684,120]
[426559070,1782591042000,-1000.0,0.00050684,2]
[426558995,1782591042000,-500.0,0.00045205,2]
[426559042,1782591042000,-3697.04,0.00047945,120]
[426559036,1782591042000,-500.0,0.00047945,120]
[426559054,1782591042000,-603.72,0.00049315,120]
[426559039,1782591042000,-500.0,0.00047945,120]
[426559035,1782591042000,-1000.0,0.00047945,2]
[426558992,1782591042000,-500.0,0.00045205,120]
[426559012,1782591042000,-500.0,0.00046575,120]
[426558991,1782591042000,-500.0,0.00045205,120]
[426559000,1782591042000,-500.0,0.00045205,120]
[426559007,1782591042000,-500.0,0.00045205,120]
[426559018,1782591042000,-1688.5,0.00046575,120]
[426559023,1782591042000,-3697.04,0.00046575,120]
[426559028,1782591042000,-500.0,0.00047945,120]
[426559002,1782591042000,-587.52,0.00045205,120]
[426559019,1782591042000,-500.0,0.00046575,90]
[426559024,1782591042000,-500.0,0.00046575,120]
[426559017,1782591042000,-500.0,0.00046575,120]
[426559021,1782591042000,-500.0,0.00046575,2]
[426559022,1782591042000,-500.0,0.00046575,120]
[426559016,1782591042000,-155.32,0.00046575,2]
[426559029,1782591042000,-500.0,0.00047945,120]
[426559031,1782591042000,-500.0,0.00047945,120]
[426559032,1782591042000,-500.0,0.00047945,120]
[426559040,1782591042000,-648.14,0.00047945,2]
[426559038,1782591042000,-500.0,0.00047945,90]
[426559037,1782591042000,-1688.5,0.00047945,120]
[426559034,1782591042000,-500.0,0.00047945,90]
[426559026,1782591042000,-735.64,0.00047944,2]
[426558997,1782591042000,-458.9,0.00045205,120]
[426558996,1782591042000,-500.0,0.00045205,120]
[426558993,1782591042000,-500.0,0.00045205,90]
[426559025,1782591042000,-500.0,0.00046575,120]
[426559033,1782591042000,-500.0,0.00047945,120]
[426559113,1782591043000,-1000.0,0.00054678,120]
[426559120,1782591043000,-1000.0,0.00054678,120]
[426559122,1782591043000,-1000.0,0.00054678,120]
[426559108,1782591043000,-500.0,0.00053424,120]
[426559110,1782591043000,-500.0,0.00054678,120]
[426559119,1782591043000,-1000.0,0.00054678,120]
[426559111,1782591043000,-267.5984486,0.00054678,120]
[426559103,1782591043000,-500.0,0.00053424,120]
[426559101,1782591043000,-312.57454433,0.00053424,120]
[426559102,1782591043000,-534.12,0.00053424,120]
[426559118,1782591043000,-1000.0,0.00054678,120]
[426559117,1782591043000,-1000.0,0.00054678,120]
[426559115,1782591043000,-1000.0,0.00054678,120]
[426559125,1782591043000,-1000.0,0.00054678,120]
[426559112,1782591043000,-500.0,0.00054678,120]
[426559116,1782591043000,-1000.0,0.00054678,120]
[426559114,1782591043000,-1000.0,0.00054678,120]
[426559124,1782591043000,-1000.0,0.00054678,120]
[426559123,1782591043000,-1000.0,0.00054678,120]
[426559126,1782591043000,-1000.0,0.00054678,120]
[426559127,1782591043000,-1000.0,0.00054678,120]
[426559128,1782591043000,-500.0,0.00054678,120]
[426559131,1782591043000,-1000.0,0.00054678,120]
[426559133,1782591043000,-1000.0,0.00054678,120]
[426559132,1782591043000,-1000.0,0.00054678,120]
[426559130,1782591043000,-215.2534413,0.00054678,120]
[426559109,1782591043000,-249.65,0.00054678,120]
[426559121,1782591043000,-154.063998,0.00054678,120]
[426559100,1782591043000,-500.0,0.00052054,120]
[426559144,1782591043000,-1100.2154713,0.00054678,120]
[426559098,1782591043000,-3697.04,0.00052054,120]
[426559079,1782591043000,-156.0,0.00051,120]
[426559073,1782591043000,-500.0,0.00050684,120]
[426559077,1782591043000,-3000.0,0.00051,85]
[426559078,1782591043000,-151.0,0.00051,120]
[426559074,1782591043000,-3697.04,0.00050684,120]
[426559075,1782591043000,-500.0,0.00050684,120]
[426559071,1782591043000,-1688.5,0.00050684,120]
[426559076,1782591043000,-459.2,0.00050684,120]
[426559072,1782591043000,-500.0,0.00050684,90]
[426559088,1782591043000,-500.0,0.00052054,120]
[426559086,1782591043000,-3000.0,0.0005106,85]
[426559082,1782591043000,-3000.0,0.0005103,85]
[426559084,1782591043000,-3000.0,0.0005104,85]
[426559095,1782591043000,-500.0,0.00052054,90]
[426559081,1782591043000,-3000.0,0.0005102,85]
[426559085,1782591043000,-3000.0,0.0005105,85]
[426559090,1782591043000,-500.0,0.00052054,120]
[426559089,1782591043000,-500.0,0.00052054,120]
[426559091,1782591043000,-500.0,0.00052054,120]
[426559080,1782591043000,-3000.0,0.0005101,85]
[426559087,1782591043000,-5630.619585,0.0005107,85]
[426559083,1782591043000,-735.64,0.00051039,2]
[426559106,1782591043000,-392.94,0.00053424,90]
[426559104,1782591043000,-500.0,0.00053424,120]
[426559107,1782591043000,-3697.04,0.00053424,120]
[426559093,1782591043000,-1688.5,0.00052054,120]
[426559096,1782591043000,-626.1,0.00052054,120]
[426559105,1782591043000,-1688.5,0.00053424,120]
[426559092,1782591043000,-723.56700205,0.00052054,2]
[426559139,1782591043000,-802.28862946,0.00054678,120]
[426559129,1782591043000,-1000.0,0.00054678,120]
[426559137,1782591043000,-1000.0,0.00054678,120]
[426559170,1782591043000,-500.0,0.00054678,120]
[426559172,1782591043000,-500.0,0.00054678,120]
[426559174,1782591043000,-672.25,0.00054678,120]
[426559164,1782591043000,-500.0,0.00054678,120]
[426559167,1782591043000,-500.0,0.00054678,120]
[426559176,1782591043000,-500.0,0.00054794,120]
[426559175,1782591043000,-182.14917047,0.00054694,120]
[426559177,1782591043000,-297.02,0.00054794,120]
[426559178,1782591043000,-1688.5,0.00054794,120]
[426559185,1782591043000,-171.0,0.00055486,120]
[426559182,1782591043000,-2000.0,0.00055,120]
[426559184,1782591043000,-179.0,0.00055254,120]
[426559179,1782591043000,-3697.04,0.00054794,120]
[426559165,1782591043000,-500.0,0.00054678,120]
[426559181,1782591043000,-503.74139029,0.00054795,20]
[426559183,1782591043000,-181.0,0.00055216,120]
[426559190,1782591043000,-735.64,0.00056163,2]
[426559187,1782591043000,-178.1611367,0.00055825,2]
[426559195,1782591043000,-1688.5,0.00056164,120]
[426559186,1782591043000,-169.0,0.00055488,120]
[426559193,1782591043000,-735.84,0.00056163,2]
[426559188,1782591043000,-211.65621126,0.00056064,2]
[426559189,1782591043000,-735.64,0.00056163,2]
[426559194,1782591043000,-500.0,0.00056164,120]
[426559191,1782591043000,-735.64,0.00056163,2]
[426559192,1782591043000,-735.64,0.00056163,2]
[426559196,1782591043000,-3697.04,0.00056164,120]
[426559198,1782591043000,-981.16116962,0.00057,120]
[426559180,1782591043000,-500.0,0.00054794,120]
[426559162,1782591043000,-500.0,0.00054678,120]
[426559142,1782591043000,-1000.0,0.00054678,120]
[426559169,1782591043000,-500.0,0.00054678,120]
[426559140,1782591043000,-1000.0,0.00054678,120]
[426559135,1782591043000,-1000.0,0.00054678,120]
[426559145,1782591043000,-500.0,0.00054678,120]
[426559143,1782591043000,-1000.0,0.00054678,120]
[426559197,1782591043000,-500.0,0.00056164,120]
[426559138,1782591043000,-197.71137054,0.00054678,120]
[426559134,1782591043000,-1000.0,0.00054678,120]
[426559136,1782591043000,-1000.0,0.00054678,120]
[426559141,1782591043000,-1000.0,0.00054678,120]
[426559147,1782591043000,-500.0,0.00054678,120]
[426559157,1782591043000,-500.0,0.00054678,120]
[426559158,1782591043000,-500.0,0.00054678,120]
[426559148,1782591043000,-500.0,0.00054678,120]
[426559159,1782591043000,-500.0,0.00054678,120]
[426559171,1782591043000,-500.0,0.00054678,120]
[426559146,1782591043000,-500.0,0.00054678,120]
[426559168,1782591043000,-500.0,0.00054678,120]
[426559161,1782591043000,-500.0,0.00054678,120]
[426559173,1782591043000,-500.0,0.00054678,120]
[426559160,1782591043000,-500.0,0.00054678,120]
[426559163,1782591043000,-500.0,0.00054678,120]
[426559151,1782591043000,-500.0,0.00054678,120]
[426559149,1782591043000,-500.0,0.00054678,120]
[426559155,1782591043000,-500.0,0.00054678,120]
[426559152,1782591043000,-500.0,0.00054678,120]
[426559153,1782591043000,-500.0,0.00054678,120]
[426559156,1782591043000,-500.0,0.00054678,120]
[426559150,1782591043000,-500.0,0.00054678,120]
[426559154,1782591043000,-500.0,0.00054678,120]
[426559719,1782592246000,-1768.95016359,0.0003034,7]
[426559766,1782592247000,-917.14273405,0.00031077,30]
[426559767,1782592247000,-200.0,0.00031755,2]
[426559769,1782592247000,-158.7715018,0.00032608,2]
[426559775,1782592247000,-157.96643,0.00033995,2]
[426559773,1782592247000,-380.0,0.00033079,2]
[426559736,1782592247000,-5682.0477318,0.00031027,120]
[426559723,1782592247000,-200.0,0.00030517,2]
[426559732,1782592247000,-200.0,0.00030534,2]
[426559727,1782592247000,-200.0,0.00030517,2]
[426559738,1782592247000,-82.85726595,0.00031077,30]
[426559731,1782592247000,-200.0,0.00030517,2]
[426559721,1782592247000,-200.0,0.00030517,2]
[426559771,1782592247000,-200.0,0.00032976,2]
[426559729,1782592247000,-200.0,0.00030517,2]
[426559784,1782592247000,-702.26523664,0.00036545,2]
[426559734,1782592247000,-1890.61200149,0.00030713,2]
[426559777,1782592247000,-200.0,0.00034196,2]
[426559805,1782592247000,-194.0,0.00038082,2]
[426559803,1782592247000,-151.5,0.00038082,2]
[426559795,1782592247000,-157.96643,0.00037573,2]
[426559801,1782592247000,-151.5,0.00038082,2]
[426559778,1782592247000,-355.0,0.00034246,2]
[426559799,1782592247000,-151.5,0.00038082,2]
[426559797,1782592247000,-151.5,0.00038082,2]
[426559791,1782592247000,-3014.2555287,0.00036645,2]
[426559788,1782592247000,-1085.13199033,0.00036645,2]
[426559786,1782592247000,-602.85110574,0.00036645,2]
[426559790,1782592247000,-1929.12353837,0.00036645,2]
[426559782,1782592247000,-157.96643,0.00035784,2]
[426559780,1782592247000,-200.0,0.00035417,2]
[426559793,1782592247000,-4340.52796132,0.00036645,2]
[426559807,1782592247000,-5158.95823283,0.00038256,120]
[426562030,1782593433000,-3614.14654064,0.0002376,13]
[426562033,1782593433000,-417.15472785,0.00024,7]
[426562036,1782593433000,-248.8674068,0.00025,10]
[426562035,1782593433000,-168.28732105,0.00025,10]
[426562032,1782593433000,-417.15472785,0.00024,3]
[426562037,1782593433000,-125.84168418,0.00025,10]
[426562034,1782593433000,-417.15472785,0.00024,3]
[426562031,1782593433000,-1385.85345936,0.0002376,13]
[426562098,1782593438000,-158.35,0.00030137,2]
[426562106,1782593438000,-190.325517,0.00035273,2]
[426562088,1782593438000,-160.0,0.00027,3]
[426562096,1782593438000,-160.0,0.00029,10]
[426562086,1782593438000,-291.31304367,0.00025,10]
[426562090,1782593438000,-160.0,0.00027,3]
[426562100,1782593438000,-1000.0,0.00032,2]
[426562104,1782593438000,-1000.0,0.00032,2]
[426562094,1782593438000,-160.0,0.00029,10]
[426562102,1782593438000,-1000.0,0.00032,2]
[426562117,1782593438000,-504.68256442,0.00036644,2]
[426562122,1782593438000,-160.0,0.00038056,120]
[426562119,1782593438000,-503.08704721,0.00036644,2]
[426562121,1782593438000,-242.67377576,0.00038055,15]
[426562124,1782593438000,-160.0,0.00038056,120]
[426562092,1782593438000,-160.0,0.00028,10]
[426562113,1782593438000,-3004.8104786,0.00035706,2]
[426562115,1782593438000,-1000.0,0.0003601,30]
[426562110,1782593438000,-213.1220315,0.00035631,7]
[426562108,1782593438000,-364.23,0.00035417,2]
[426562127,1782593438000,-10973.32822768,0.00038056,120]
[426562273,1782593444000,-304.0,0.0002475,13]
[426562287,1782593447000,-3924.45938457,0.0002475,13]
[426562389,1782593613000,2000.0,0.00022,120]
[426562471,1782593654000,-5400000.0,0.00061383,30]
[426562556,1782593712000,-9000000.0,0.00061383,30]
[426562559,1782593718000,-490.00383864,0.00061383,110]
[426562557,1782593718000,-3924303.23042977,0.00061383,30]
[426562558,1782593718000,-3000.0,0.00061383,120]
[426562561,1782593719000,-301.48111836,0.00061383,120]
[426562562,1782593719000,-1224.06748647,0.00061383,120]
[426562564,1782593719000,-301.48111836,0.00061383,120]
[426562563,1782593719000,-490.00383864,0.00061383,110]
[426562565,1782593719000,-1224.06748647,0.00061383,120]
[426562567,1782593719000,-301.48111836,0.00061383,120]
[426562566,1782593719000,-490.00383864,0.00061383,110]
[426562568,1782593719000,-490.00383864,0.00061383,110]
[426562569,1782593719000,-1224.06748647,0.00061383,120]
[426562571,1782593719000,-1224.06748647,0.00061383,120]
[426562572,1782593719000,-301.48111836,0.00061383,120]
[426562570,1782593719000,-301.48111836,0.00061383,120]
[426562573,1782593719000,-490.00383864,0.00061383,110]
[426562575,1782593719000,-301.48111836,0.00061383,120]
[426562560,1782593719000,-1224.06748647,0.00061383,120]
[426562574,1782593719000,-1224.06748647,0.00061383,120]
[426562576,1782593719000,-490.00383864,0.00061383,110]
[426562577,1782593719000,-1224.06748647,0.00061383,120]
[426562592,1782593719000,-490.00383864,0.00061383,110]
[426562591,1782593719000,-1224.06748647,0.00061383,120]
[426562589,1782593719000,-1224.06748647,0.00061383,120]
[426562587,1782593719000,-1224.06748647,0.00061383,120]
[426562588,1782593719000,-490.00383864,0.00061383,110]
[426562586,1782593719000,-490.00383864,0.00061383,110]
[426562590,1782593719000,-490.00383864,0.00061383,110]
[426562583,1782593719000,-490.00383864,0.00061383,110]
[426562584,1782593719000,-1224.06748647,0.00061383,120]
[426562579,1782593719000,-490.00383864,0.00061383,110]
[426562580,1782593719000,-1224.06748647,0.00061383,120]
[426562581,1782593719000,-490.00383864,0.00061383,110]
[426562585,1782593719000,-490.00383864,0.00061383,110]
[426562582,1782593719000,-1224.06748647,0.00061383,120]
[426562578,1782593719000,-301.48111836,0.00061383,120]
[426562593,1782593720000,-1224.06748647,0.00061383,120]
[426562594,1782593720000,-1224.06748647,0.00061383,120]
[426562595,1782593720000,-1224.06748647,0.00061383,120]
[426562597,1782593720000,-1224.06748647,0.00061383,120]
[426562596,1782593720000,-1224.06748647,0.00061383,120]
[426562599,1782593720000,-1224.06748647,0.00061383,120]
[426562598,1782593720000,-1224.06748647,0.00061383,120]
[426562602,1782593720000,-1224.06748647,0.00061383,120]
[426562601,1782593720000,-1224.06748647,0.00061383,120]
[426562604,1782593720000,-1224.06748647,0.00061383,120]
[426562603,1782593720000,-1224.06748647,0.00061383,120]
[426562606,1782593720000,-1224.06748647,0.00061383,120]
[426562605,1782593720000,-1224.06748647,0.00061383,120]
[426562607,1782593720000,-1224.06748647,0.00061383,120]
[426562608,1782593720000,-1224.06748647,0.00061383,120]
[426562609,1782593720000,-1224.06748647,0.00061383,120]
[426562610,1782593720000,-1224.06748647,0.00061383,120]
[426562600,1782593720000,-1224.06748647,0.00061383,120]
[426562620,1782593721000,-1224.06748647,0.00061383,120]
[426562617,1782593721000,-1224.06748647,0.00061383,120]
[426562618,1782593721000,-1224.06748647,0.00061383,120]
[426562616,1782593721000,-1224.06748647,0.00061383,120]
[426562611,1782593721000,-1224.06748647,0.00061383,120]
[426562615,1782593721000,-1224.06748647,0.00061383,120]
[426562612,1782593721000,-1224.06748647,0.00061383,120]
[426562613,1782593721000,-1224.06748647,0.00061383,120]
[426562614,1782593721000,-1224.06748647,0.00061383,120]
[426562619,1782593721000,-1224.06748647,0.00061383,120]
[426562628,1782593721000,-1224.06748647,0.00061383,120]
[426562622,1782593721000,-1224.06748647,0.00061383,120]
[426562623,1782593721000,-1224.06748647,0.00061383,120]
[426562624,1782593721000,-1224.06748647,0.00061383,120]
[426562625,1782593721000,-1224.06748647,0.00061383,120]
[426562626,1782593721000,-1224.06748647,0.00061383,120]
[426562627,1782593721000,-1224.06748647,0.00061383,120]
[426562629,1782593721000,-697.0,0.00061383,30]
[426562631,1782593721000,-150.74055917,0.00061383,120]
[426562621,1782593721000,-1224.06748647,0.00061383,120]
[426562630,1782593721000,-153.00843579,0.00061383,120]
[426562639,1782593722000,-153.00843579,0.00061383,120]
[426562632,1782593722000,-153.00843579,0.00061383,120]
[426562640,1782593722000,-283.06108236,0.00061383,120]
[426562637,1782593722000,-153.00843579,0.00061383,120]
[426562633,1782593722000,-163.33461287,0.00061383,110]
[426562635,1782593722000,-163.33461287,0.00061383,110]
[426562636,1782593722000,-153.00843579,0.00061383,120]
[426562634,1782593722000,-153.00843579,0.00061383,120]
[426562642,1782593722000,-1172.91595405,0.00061383,120]
[426562638,1782593722000,-153.00843579,0.00061383,120]
[426562641,1782593722000,-280.36727393,0.00061383,120]
[426562647,1782593722000,-304.4,0.00061383,120]
[426562645,1782593722000,-153.00843578,0.00061383,120]
[426562643,1782593722000,-734.54,0.00061383,120]
[426562653,1782593722000,-151.0,0.00061383,120]
[426562654,1782593722000,-284.842841,0.00061383,60]
[426562650,1782593722000,-151.0,0.00061383,120]
[426562652,1782593722000,-151.0,0.00061383,120]
[426562648,1782593722000,-7000.0,0.00061383,120]
[426562649,1782593722000,-558.24,0.00061383,120]
[426562646,1782593722000,-163.33461286,0.00061383,110]
[426562651,1782593722000,-151.0,0.00061383,120]
[426562644,1782593722000,-150.74055916,0.00061383,120]
[426562655,1782593723000,-316.417435,0.00061383,120]
[426562656,1782593723000,-316.417435,0.00061383,120]
[426562657,1782593723000,-316.417435,0.00061383,120]
[426562658,1782593723000,-316.417435,0.00061383,120]
[426562661,1782593723000,-316.417435,0.00061383,120]
[426562663,1782593723000,-316.417435,0.00061383,120]
[426562662,1782593723000,-316.417435,0.00061383,120]
[426562664,1782593723000,-316.417435,0.00061383,120]
[426562665,1782593723000,-316.417435,0.00061383,120]
[426562659,1782593723000,-316.417435,0.00061383,120]
[426562666,1782593723000,-316.417435,0.00061383,120]
[426562668,1782593723000,-316.417435,0.00061383,120]
[426562675,1782593723000,-151.0,0.00061383,30]
[426562674,1782593723000,-316.417437,0.00061383,120]
[426562673,1782593723000,-316.417435,0.00061383,120]
[426562660,1782593723000,-316.417435,0.00061383,120]
[426562672,1782593723000,-316.417435,0.00061383,120]
[426562670,1782593723000,-316.417435,0.00061383,120]
[426562669,1782593723000,-316.417435,0.00061383,120]
[426562671,1782593723000,-316.417435,0.00061383,120]
[426562667,1782593723000,-316.417435,0.00061383,120]
[426562676,1782593724000,-1234.435301,0.00061383,120]
[426562678,1782593726000,750.69718,0.00061383,120]
[426562679,1782593734000,1256.787793,0.00061383,120]
[426562699,1782593769000,1884.2563116,0.00061383,30]
[426562709,1782593776000,4978206.59628154,0.00061383,30]
[426562766,1782593837000,-989.65397778,0.00061383,120]
[426562755,1782593837000,-21793.40371846,0.00061383,30]
[426562764,1782593837000,-232.03543894,0.00061383,120]
[426562763,1782593837000,-1270.86263136,0.00061383,30]
[426562761,1782593837000,-514.3720851,0.00061383,30]
[426562762,1782593837000,-1507.86028371,0.00061383,120]
[426562759,1782593837000,-1601.94274663,0.00061383,30]
[426562760,1782593837000,-199.05010377,0.00061383,120]
[426562757,1782593837000,-2094.36373817,0.00061383,120]
[426562758,1782593837000,-296.39520563,0.00061383,120]
[426562756,1782593837000,-1831.87954513,0.00061383,120]
[426562767,1782593837000,-4239.88,0.00061383,30]
[426562765,1782593837000,-1814.08762463,0.00061383,120]
[426562769,1782593842000,3983.20096214,0.000125,2]
[426562768,1782593842000,7116.41594196,0.000125,2]
[426562770,1782593845000,747.07602043,0.00061383,120]
[426562772,1782593847000,229.67617096,0.00061383,30]
[426562771,1782593847000,1480.35913144,0.00061383,60]
[426562773,1782593847000,2731.98768509,0.000249,120]
[426562774,1782593848000,7009.19071154,0.00061383,30]
[426562776,1782593849000,2034.57159844,0.00061383,120]
[426562786,1782593851000,768.05545384,0.00017,120]
[426562785,1782593851000,1474.69291495,0.00061383,120]
[426562783,1782593851000,1195.03874956,0.00061383,120]
[426562787,1782593852000,1977.92033231,0.00061383,30]
[426562791,1782593854000,1556.10704364,0.00061383,120]
[426562792,1782593854000,1638.1731214,0.00061383,120]
[426562790,1782593854000,1089.07687935,0.00061383,120]
[426562793,1782593855000,21016.79903786,7.6e-05,2]
[426562795,1782593855000,1268.95236088,0.00061383,30]
[426562794,1782593855000,21061.32414124,7.6e-05,2]
[426562796,1782593856000,564.24874795,0.00061383,120]
[426562797,1782593856000,232.51343561,0.00061383,120]
[426562800,1782593857000,192.01473486,0.00061383,30]
[426562799,1782593857000,177.85618471,0.00025,30]
[426562798,1782593857000,341.14749473,0.00061383,120]
[426562803,1782593859000,540.0327362,0.00025,120]
[426562802,1782593859000,300.0,0.00025,30]
[426562801,1782593859000,857.60395272,0.00061383,120]
[426562809,1782593861000,1620.34016043,0.00061383,30]
[426562808,1782593861000,974.47565917,0.00061383,120]
[426562814,1782593862000,1000.0,0.00061383,30]
[426562812,1782593862000,451.18643582,0.00025,120]
[426562821,1782593863000,1899.97367174,0.00061383,120]
[426562819,1782593863000,381.20190913,0.00061383,120]
[426562820,1782593863000,370.82390998,0.00061383,120]
[426562818,1782593863000,6523.48525315,0.00012,2]
[426562817,1782593863000,3938.67585876,0.00012,2]
[426562825,1782593864000,201.28916778,0.00061383,30]
[426562824,1782593864000,183.71847955,0.00061383,120]
[426562827,1782593864000,525.647456,0.00061383,120]
[426562833,1782593865000,1048.28080427,0.00061383,30]
[426562832,1782593865000,168.44714175,0.00061383,120]
[426562831,1782593865000,200.0,0.000245,120]
[426562829,1782593865000,286.45670321,0.00061383,120]
[426562830,1782593865000,242.66169152,0.00061383,120]
[426562828,1782593865000,205.96869878,0.00061383,120]
[426562834,1782593866000,243.43227023,0.00061383,30]
[426562838,1782593867000,489.80522812,0.00028,120]
[426562837,1782593867000,200.0,0.00061383,120]
[426562836,1782593867000,1246.42190323,0.00061383,120]
[426562835,1782593867000,1297.65900591,0.00061383,30]
[426562841,1782593868000,1009.87142981,0.00061383,120]
[426562840,1782593868000,1137.05332048,0.00061383,120]
[426562839,1782593868000,164.30402041,0.00061383,120]
[426562842,1782593870000,501.82698471,0.00061383,120]
[426562843,1782593871000,364.9019382,0.00061383,120]
[426562844,1782593871000,265.09599162,0.00024,120]
[426562846,1782593872000,420.0,0.00061383,30]
[426562845,1782593872000,2000.0,0.00061383,120]
[426562848,1782593873000,313.26135279,0.00061383,120]
[426562847,1782593873000,391.5951772,0.00061383,30]
[426562849,1782593874000,2000.0,0.00024,120]
[426562938,1782593945000,803.31,0.00061381,120]
[426562937,1782593945000,-151.0,0.000215,2]
[426562936,1782593945000,487.0,0.00061381,120]
[426562942,1782593947000,3000.0,0.00061381,120]
[426563039,1782594008000,283.06108236,0.00061381,120]
[426563055,1782594010000,280.36727393,0.00061381,120]
[426563056,1782594012000,1172.91595405,0.00061381,120]
[426563099,1782594027000,1224.06748647,0.00061381,120]
[426563100,1782594028000,490.00383864,0.00061381,110]
[426563101,1782594028000,1224.06748647,0.00061381,120]
[426563104,1782594028000,490.00383864,0.00061381,110]
[426563103,1782594028000,1224.06748647,0.00061381,120]
[426563102,1782594028000,490.00383864,0.00061381,110]
[426563105,1782594028000,1224.06748647,0.00061381,120]
[426563111,1782594029000,490.00383864,0.00061381,110]
[426563110,1782594029000,1224.06748647,0.00061381,120]
[426563109,1782594029000,490.00383864,0.00061381,110]
[426563108,1782594029000,1224.06748647,0.00061381,120]
[426563107,1782594029000,490.00383864,0.00061381,110]
[426563106,1782594029000,1224.06748647,0.00061381,120]
[426563118,1782594030000,1224.06748647,0.00061381,120]
[426563117,1782594030000,490.00383864,0.00061381,110]
[426563116,1782594030000,1224.06748647,0.00061381,120]
[426563115,1782594030000,490.00383864,0.00061381,110]
[426563114,1782594030000,1224.06748647,0.00061381,120]
[426563113,1782594030000,490.00383864,0.00061381,110]
[426563112,1782594030000,1224.06748647,0.00061381,120]
[426563119,1782594031000,490.00383864,0.00061381,110]
[426563120,1782594031000,1224.06748647,0.00061381,120]
[426563122,1782594031000,1224.06748647,0.00061381,120]
[426563124,1782594031000,1224.06748647,0.00061381,120]
[426563121,1782594031000,490.00383864,0.00061381,110]
[426563123,1782594031000,490.00383864,0.00061381,110]
[426563129,1782594032000,1224.06748647,0.00061381,120]
[426563127,1782594032000,1224.06748647,0.00061381,120]
[426563126,1782594032000,490.00383864,0.00061381,110]
[426563125,1782594032000,490.00383864,0.00061381,110]
[426563135,1782594033000,1224.06748647,0.00061381,120]
[426563133,1782594033000,1224.06748647,0.00061381,120]
[426563131,1782594033000,1224.06748647,0.00061381,120]
[426563141,1782594034000,1224.06748647,0.00061381,120]
[426563139,1782594034000,1224.06748647,0.00061381,120]
[426563137,1782594034000,1224.06748647,0.00061381,120]
[426563143,1782594035000,1224.06748647,0.00061381,120]
[426563149,1782594035000,1224.06748647,0.00061381,120]
[426563152,1782594035000,1224.06748647,0.00061381,120]
[426563146,1782594035000,1224.06748647,0.00061381,120]